Cogmind - Beta 13 @@@ ROGUE MODE // 2024.08.06 @ 09:26:01 Player: N00Bk1llr Result: Self-destructed Performance ------------- Evolutions (1) 500 Regions Visited (3) 600 Robots Destroyed (16) 80 Value Destroyed (277) 277 Prototype IDs (0) 0 Alien Tech Used (0) 0 Bonus (0) 0 TOTAL SCORE: 1457 Bonus ------- None Cogmind --------- Core Integrity 306/400 Matter 290/300 Energy 85/100 System Corruption 0% Temperature Cool (0) Movement Walking (120) Location -9/Mines Parts ------- > --- POWER (1) -------- (None) > --- PROPULSION (3) --- Aluminum Leg Aluminum Leg Wheel > --- UTILITY (2) ------ Small Storage Unit > --- WEAPON (3) ------- Light Assault Rifle Light Assault Rifle Katana > --- INVENTORY (8) ---- Ion Engine Light Treads Light Treads Compact Wheel Light Armor Plating EM Pulse Gun Peak State ------------ > --- POWER ------------ (None) > --- PROPULSION ------- Aluminum Leg Aluminum Leg Wheel > --- UTILITY ---------- Small Storage Unit Melee Analysis Suite > --- WEAPON ----------- Light Assault Rifle Light Assault Rifle Katana > --- INVENTORY -------- Ion Engine Light Treads Light Treads Compact Wheel Light Armor Plating EM Pulse Gun [Rating: 12] Favorites ----------- Power Light Ion Engine Engine Light Ion Engine Propulsion Aluminum Leg Leg Aluminum Leg Wheel Wheel Utility Small Storage Unit Storage Small Storage Unit Processor Melee Analysis Suite Protection Light Armor Plating Weapon Light Assault Rifle Energy Gun EM Pulse Gun Ballistic Gun Light Assault Rifle Slashing Weapon Katana Build | -11 -10 -9 -9 ------- Run | Yrd Mat Mat Min Slots Evolved 2 | . . 2 . Power . | . . . . Propulsion 1 | . . 1 . Utility . | . . . . Weapon 1 | . . 1 . Parts Attached 7 | . . 3 4 Power . | . . . . Engine . | . . . . Core . | . . . . Reactor . | . . . . Propulsion 1 | . . 1 . Treads . | . . . . Leg . | . . . . Wheel 1 | . . 1 . Hover . | . . . . Flight . | . . . . Utility 2 | . . 1 1 Device . | . . . . Storage . | . . . . Processor 1 | . . . 1 Hackware . | . . . . Protection 1 | . . 1 . Artifact . | . . . . Weapon 4 | . . 1 3 Energy Gun . | . . . . Energy Cannon . | . . . . Ballistic Gun 3 | . . 1 2 Ballistic Cannon . | . . . . Launcher . | . . . . Special Weapon . | . . . . Impact Weapon . | . . . . Slashing Weapon 1 | . . . 1 Piercing Weapon . | . . . . Special Melee Weapon . | . . . . Unidentified Prototypes . | . . . . Parts Lost 1 | . . . 1 Power 1 | . . . 1 Propulsion . | . . . . Utility . | . . . . Weapon . | . . . . Highest Loss Streak 1 | . . . 1 To Critical Strikes . | . . . . Average Slot Usage (%) 89 | . 85 96 84 Engine 7 | . 14 11 1 Leg 23 | . 28 22 22 Wheel 8 | . . 11 11 Storage 11 | . 14 11 11 Protection 5 | . . 7 6 Energy Gun 8 | . 14 11 2 Ballistic Gun 19 | . 14 22 21 Slashing Weapon 3 | . . . 8 Naked Turns . | . . . . Heaviest Build 15 | 11 11 15 15 Greatest Support 20 | 20 20 20 20 Greatest Overweight (x) . | . . . . Average Overweight (x) . | . . . . Largest Inventory Capacity 8 | 8 8 8 8 Average Capacity 8 | 8 8 8 8 Most Carried 8 | 6 6 5 8 Average Carried 5 | 6 6 4 5 Final Capacity 8 | 8 8 8 8 Final Carried 6 | 6 6 4 6 Class Distribution -------------------- 53% | Mutant 35% | Tank 10% | Gunner Dominant Class ---------------- Mutant | -10/Materials Tank | -9/Materials Mutant | -9/Mines Resources | -11 -10 -9 -9 ----------- Run | Yrd Mat Mat Min Matter Collected 315 | 204 . 68 43 Remotely . | . . . . Salvage Created 621 | 75 . 380 166 Parts 30 | 1 . 21 8 Haulers Intercepted 2 | . . 2 . Recyclers Shooed . | . . . . Parts Field Recycled . | . . . . Retrieved Matter . | . . . . Parts Self-Destructed . | . . . . Prevented . | . . . . Kills | -11 -10 -9 -9 ------- Run | Yrd Mat Mat Min Combat Hostiles Destroyed 11 | . . 8 3 Guns 11 | . . 8 3 Classes Destroyed 7 | 1 . 4 2 Tunneler 1 | . . . 1 Hauler 2 | . . 2 . Recycler 2 | 1 . 1 . Swarmer 6 | . . 6 . Grunt 3 | . . 1 2 Duelist 1 | . . . 1 Sentry 1 | . . 1 . Best Kill Streak 5 | 1 . 5 3 Combat Bots Only 4 | . . 4 3 Max Kills in Single Turn 1 | 1 . 1 1 Gunslinging . | . . . . Exploded . | . . . . Melee . | . . . . Uniques/NPCs Destroyed . | . . . . Combat | -11 -10 -9 -9 -------- Run | Yrd Mat Mat Min Hostile Shots Fired 62 | . 1 41 20 Missed 18 | . 1 10 7 Damage Taken 460 | . . 278 182 Core 94 | . . 63 31 Absorbed by Shields . | . . . . Core Remaining (%) 100 | 100 100 . . Volleys Fired 36 | 4 1 22 9 Largest 3 | 2 2 3 3 Hottest 80 | 60 60 80 80 Shots Fired 103 | 8 2 66 27 Gun 103 | 8 2 66 27 Cannon . | . . . . Launcher . | . . . . Special . | . . . . Kinetic 67 | 4 1 44 18 Thermal . | . . . . Explosive . | . . . . Electromagnetic 36 | 4 1 22 9 Robot Hit Streak 11 | 4 . 11 5 Robot Miss Streak 3 | 3 2 3 3 Penetration Max . | . . . . Secondary Targets 4 | . . 2 2 Max Gunslinging Chain 1 | . . 1 1 Shots Hit Robots 62 | 4 . 40 18 Core Hits 28 | 2 . 18 8 Critical Kills . | . . . . Critical Parts Destroyed . | . . . . Critical Strikes . | . . . . Melee Attacks 4 | . . . 4 Impact . | . . . . Slashing 4 | . . . 4 Piercing . | . . . . Sneak Attacks 2 | . . . 2 Combat Hostiles . | . . . . Follow-up Attacks . | . . . . Damage Inflicted 775 | 41 . 421 313 Guns 573 | 41 . 371 161 Cannons . | . . . . Explosions 76 | . . 46 30 Melee 122 | . . . 122 Ramming 4 | . . 4 . Kinetic 318 | 17 . 208 93 Thermal 76 | . . 46 30 Explosive . | . . . . Electromagnetic 255 | 24 . 163 68 Impact . | . . . . Slashing 122 | . . . 122 Piercing . | . . . . Highest Corruption . | . . . . Average Corruption . | . . . . Corruption Purged . | . . . . Corruption Blocked . | . . . . Overload Shots . | . . . . Overflow Damage 80 | . . . 80 Projectiles . | . . . . Explosions . | . . . . Melee 80 | . . . 80 Knockbacks . | . . . . Impact . | . . . . Kinetic . | . . . . Secondary . | . . . . Self-Inflicted Damage 20 | . . . 20 Shots 1 | . . . 1 Rammed . | . . . . Targets Rammed 2 | . . 2 . Kicked 2 | . . 2 . Crushed . | . . . . Highest Temperature 197 | 20 20 111 197 Average Temperature 53 | 15 15 39 102 Received Heat Transfer 51 | . . 21 30 Siege Activations . | . . . . Robots Corrupted . | . . . . Combat Hostiles . | . . . . Parts Fried . | . . . . Impact Corruptions . | . . . . Robots Melted . | . . . . Combat Hostiles . | . . . . Parts Melted . | . . . . Heat Transferred 100 | . . 50 50 Parts Sabotaged . | . . . . Parts Stolen . | . . . . Parts Stripped . | . . . . Power Chain Reactions 2 | . . 1 1 Alert | -11 -10 -9 -9 ------- Run | Yrd Mat Mat Min Peak Influence 262 | 5 18 262 189 Initial 102 | . 3 7 102 Average 120 | 1 16 144 159 Maximum Alert Level 1 | . . 1 . Low Security (%) 95 | 100 100 86 100 Level 1 4 | . . 13 . Level 2 . | . . . . Level 3 . | . . . . Level 4 . | . . . . Level 5 . | . . . . High Security . | . . . . Max Security . | . . . . Squads Dispatched 2 | . 1 1 . Investigation 2 | . 1 1 . Extermination . | . . . . Reinforcement . | . . . . Assault . | . . . . Garrison . | . . . . Intercept . | . . . . Searches Triggered . | . . . . Construction Impeded . | . . . . Haulers Reinforced . | . . . . Active Scanning Responses . | . . . . Cargo Convoy Interrupts . | . . . . Stealth | -11 -10 -9 -9 --------- Run | Yrd Mat Mat Min Distress Signals 1 | . . 1 . Communications Jammed . | . . . . Distress Signals . | . . . . Times Spotted 26 | . 5 15 6 Peak Tracking Total 7 | . 4 7 3 Tactical Retreats 1 | . . 1 . Traps | -11 -10 -9 -9 ------- Run | Yrd Mat Mat Min Traps Triggered . | . . . . Indirectly . | . . . . Trap Hack Attempts . | . . . . Triggered . | . . . . Disarmed . | . . . . Reprogrammed . | . . . . Reused . | . . . . Traps Extracted . | . . . . Installed . | . . . . Triggered . | . . . . Machines | -11 -10 -9 -9 ---------- Run | Yrd Mat Mat Min Machines Disabled . | . . . . Max in Single Turn . | . . . . Machines Repaired . | . . . . Machines Dismantled . | . . . . Machines Sabotaged . | . . . . Overloaded Fab Kills . | . . . . Hacking | -11 -10 -9 -9 --------- Run | Yrd Mat Mat Min Machines Accessed 3 | . 1 2 . Terminals 3 | . 1 2 . Fabricators . | . . . . Repair Stations . | . . . . Recycling Units . | . . . . Scanalyzers . | . . . . Garrison Access . | . . . . Total Hacks 11 | . 4 7 . Successful 1 | . 1 . . Failed 10 | . 3 7 . Catastrophic 1 | . 1 . . Database Lockouts . | . . . . Manual 3 | . . 3 . Terminals 11 | . 4 7 . Fabricators . | . . . . Repair Stations . | . . . . Recycling Units . | . . . . Scanalyzers . | . . . . Garrison Access . | . . . . Terminal Hacks 1 | . 1 . . Hauler Manifests 1 | . 1 . . Fabricator Hacks . | . . . . Repair Station Hacks . | . . . . Recycling Unit Hacks . | . . . . Scanalyzer . | . . . . Garrison Access Hacks . | . . . . Unauthorized Hacks . | . . . . Terminals . | . . . . Fabricators . | . . . . Repair Stations . | . . . . Recycling Units . | . . . . Scanalyzers . | . . . . Garrison Access . | . . . . Data Cores Recovered . | . . . . Used . | . . . . Hacking Detections 3 | . 1 2 . Full Trace Events 2 | . 1 1 . Feedback Events . | . . . . Feedback Blocked . | . . . . Robot Schematics Acquired . | . . . . Robots Built . | . . . . Authchips . | . . . . Time . | . . . . Total Robot Build Rating . | . . . . Part Schematics Acquired . | . . . . Parts Built . | . . . . Authchips . | . . . . Time . | . . . . Total Part Build Rating . | . . . . Parts Repaired . | . . . . Time . | . . . . Parts Recycled . | . . . . Recycled Matter . | . . . . Retrieved Matter . | . . . . Retrieved Components . | . . . . Parts Scanalyzed . | . . . . Part Schematics Acquired . | . . . . Parts Damaged . | . . . . Bothacking | -11 -10 -9 -9 ------------ Run | Yrd Mat Mat Min Used RIF Installer . | . . . . Robots Hacked . | . . . . Non-combat . | . . . . Combat . | . . . . Robot Hacks Applied . | . . . . Relay Couplers Released . | . . . . Fabnet Peak Effective % . | . . . . Robots Rewired . | . . . . Allies Hacked . | . . . . Hacks Repelled . | . . . . Allies | -11 -10 -9 -9 -------- Run | Yrd Mat Mat Min Total Allies . | . . . . Largest Group . | . . . . Highest-Rated Group . | . . . . Highest-Rated Ally . | . . . . Total Orders . | . . . . Ally Attacks . | . . . . Total Damage . | . . . . Kills . | . . . . Allies Corrupted . | . . . . Allies Melted . | . . . . Intel | -11 -10 -9 -9 ------- Run | Yrd Mat Mat Min Robot Analysis Total . | . . . . Derelict Logs Recovered . | . . . . Drone Launches . | . . . . Drone Recoveries . | . . . . Exploration | -11 -10 -9 -9 ------------- Run | Yrd Mat Mat Min Turns Passed 751 | 14 159 276 302 Spaces Moved 518 | 3 131 171 213 Core . | . . . . Treads . | . . . . Legs 518 | 3 131 171 213 Wheels . | . . . . Hover . | . . . . Flight . | . . . . Fastest Speed 120 | 120 120 120 120 Average Speed 120 | 120 120 120 120 Slowest Speed 120 | 120 120 120 120 Overloaded Moves . | . . . . Propulsion Burnouts . | . . . . Robots Hopped . | . . . . Cave-ins Triggered . | . . . . Exploration Rate (%) 26 | 2 38 20 45 Regions Visited 3 Branch Regions 1 Pre-discovered Areas . | . . . . Known Exits Taken . | . . . . Unknown Exits Taken 3 | 1 1 1 . Scrap Searched . | . . . . Spaces Dug 1 | . . . 1 Terrain Destroyed 13 | . . 6 7 Melee 1 | . . . 1 Projectile . | . . . . AOE 12 | . . 6 6 Terrain Rammed . | . . . . Walls Destroyed . | . . . . Machines Disabled . | . . . . Actions | -11 -10 -9 -9 --------- Run | Yrd Mat Mat Min Total 576 | 6 131 200 239 Wait 4 | . . 2 2 Move 515 | 2 130 170 213 Hop . | . . . . Pick Up 3 | . . 1 2 Fast Attach . | . . . . Attach 7 | . . 3 4 Detach 4 | . . . 4 Swap . | . . . . Drop 1 | . . . 1 Fire 36 | 4 1 22 9 Melee 4 | . . . 4 Ram . | . . . . Kick 2 | . . 2 . Crush . | . . . . Escape Stasis . | . . . . Rewire . | . . . . Trap . | . . . . Miscellaneous . | . . . . Route ------- -11/Scrapyard -10/Materials -9/Materials -9/Mines History --------- Turn | Location | Event 4 | -11/Scrapyard | Discovered new exit (range 3) 15 | -11/Scrapyard | Entered Materials 93 | -10/Materials | Discovered new exit (range 7) 174 | -10/Materials | Entered another Materials area 174 | -9/Materials | Evolved 2 slots: Propulsion x1, Weapon x1 198 | -9/Materials | Discovered new exit (range 15) 450 | -9/Materials | Entered Mines 752 | -9/Mines | Self-destructed Last Messages --------------- 00461_ Current location identified: Mines 00495_ G-34 Mercenary destroyed. 00495_ Switching to secondary target: G-34 Mercenary. 00504_ Lgt. Ion Engine destroyed. 00504_ L-31 Rogue destroyed. 00504_ Switching to secondary target: G-34 Mercenary. 00507_ Chain reaction triggered in Ion Engine. 00514_ G-34 Mercenary misfires. 00515_ G-34 Mercenary destroyed. 00519_ Acquired Melee Analysis Suite. 00522_ Acquired 13 matter. 00526_ Acquired Katana. 00537_ Acquired 30 matter. 00586_ T-07 Excavator is excavating. 00604_ Sneak attack on T-07 Excavator. 00604_ Destroyed Wheel. 00606_ Sneak attack on T-07 Excavator. 00606_ Destroyed Mining Laser. 00606_ T-07 Excavator destroyed. 00749_ Discarded Melee Analysis Suite. Map ----- +----------------------------------------------------+ | | | | | | | | | | | ????????????????????????????????? | | ????????????????????????????????? | | ????????????????????????????????? | | ????????????????????????????????? | | ????????????????????????????????? | | ????????????????????????????????? | | ????????????????????????????????? | | ????????????????????????????????? | | ????????????????????????????????? | | ????????????????????????????????? | | ????????????????????????????????? | | ????????????????????????????????? | | ????????????????????????????????? | | ????????????????????????????????? | | ????????????????????????????????? | | ????????????????????????????????? | | ????????????????????????????????? | | ?????????####???????????????????? | | ???????##ss ##??????????????????? | | ??????## #####??????????????? | | ??????# @""" ????????????? | | ??????# """ ????????? | | ??????# s""" #######???????????? | | ??????## ##?????????????????? | | ???????# ## ##??????????????????? | | ???????# #? #???????????????????? | | ???????# ## #???????????????????? | | ???????# #???????????????????? | | ???????# ##$#???????????????????? | | ???????# #??#???????????????????? | | ???????# #??????????????????????? | | ???????# #??????????????????????? | | ???????# #??????????????????????? | | ??????## #??????????????????????? | | ?????## ######?????????????????? | | ?????# #?????????????????? | | ?????# ### #?????????????????? | | ?????## ##?# #?????????????????? | | ??????## ##?# #?????????????????? | | ???????# ### #?????????????????? | | ???????# #?????????????????? | | ???????# ## #?????????????????? | | ???????###### #######???????????? | | ????????????# #???????????? | | ??????####### ##### #???????????? | +----------------------------------------------------+ Best States ------------- Heat Dissipation 28 Energy Generation 10 Energy Capacity 125 Matter Stores 300 Matter Capacity 300 Sight Range 16 Terrain Scan Density 10 Armor Coverage 150 Evasion (%) 55 Item Schematics ----------------- None Robot Schematics ------------------ None Fabricated ------------ Nothing Alien Tech Used ----------------- None Achievements -------------- None Challenges ------------ None Game ------ Seed ImprinterMiningRedistributor Manual? 0 Play Time 00:08:53 Cumulative 71.3 hours Start 2024.08.06 @ 09:19:06 End 2024.08.06 @ 09:26:01 Sessions 1 Manual Loads 0 Difficulty Rogue Special Mode None Game No. 132 Rogue 110 Adventurer 22 Explorer 0 Win Type - Total 1 Types 1/0/0/0/0/0/0/0/0 Lore% 44 Gallery% 58 Achievement% 49 Wizard Run 0 Options --------- Layout 0 ASCII 0 Keyboard 1 Movement Mouse Keybinds 0 Fullscreen 2 Font 18/SmallcapsGlow Map View 76x50 Zoom Use 0% Tactical HUD 1 Map Filters NONE Filters NONE Steam 1 RUN: 676ec54c-bee8-4f79-b7e2-3d7d9de8b3d9